bitfinex-derivatives/quotes_BTCF0:USTF0_20241227
["timestamp","ask_amount","ask_price","bid_price","bid_amount"]
[1735314647507,0.41393,94245.0,94241.0,0.00659145]
[1735314647895,0.41393,94245.0,94241.0,0.00559145]
[1735314648096,0.41393,94245.0,94241.0,0.00359145]
[1735314648998,0.41393,94245.0,94241.0,0.00459145]
[1735314649205,0.053131,94242.0,94241.0,0.00459145]
[1735314649893,0.15924136,94242.0,94241.0,0.00559145]
[1735314650207,0.053138,94230.0,94229.0,0.357]
[1735314650398,0.413938,94230.0,94229.0,0.357]
[1735314650601,0.053144,94220.0,94201.0,0.74374]
[1735314650901,0.053144,94220.0,94201.0,0.7429]
[1735314652203,0.054144,94220.0,94201.0,0.7539]
[1735314653010,0.053145,94218.0,94201.0,0.011]
[1735314653209,0.001,94220.0,94201.0,0.011]
[1735314653210,0.053146,94217.0,94201.0,0.011]
[1735314653397,0.053148,94213.0,94201.0,0.011]
[1735314653708,0.1632314,94220.0,94201.0,0.009]
[1735314653910,0.17942521,94220.0,94201.0,0.009]
[1735314654107,0.05315,94209.0,94201.0,0.009]
[1735314654407,0.413954,94203.0,94201.0,0.008]
[1735314654599,0.3608,94212.0,94201.0,0.008]
[1735314654906,0.3608,94222.0,94201.0,0.008]
[1735314654907,0.053148,94213.0,94201.0,0.008]
[1735314655308,0.053148,94213.0,94201.0,0.005]
[1735314655516,0.053148,94213.0,94201.0,0.008]
[1735314656212,0.053148,94213.0,94201.0,0.006]
[1735314656407,0.3608,94212.0,94201.0,0.006]
[1735314656613,0.3608,94222.0,94201.0,0.005]
[1735314656809,0.3608,94222.0,94210.0,0.1622314]
[1735314657210,0.00159244,94237.0,94215.0,0.3608]
[1735314657513,0.05472644,94237.0,94220.0,0.053144]
[1735314657709,0.07168908,94237.0,94220.0,0.053144]
[1735314658109,0.07168908,94237.0,94221.0,0.053143]
[1735314658313,0.07168908,94237.0,94215.0,0.3608]
[1735314658612,0.07268908,94237.0,94223.0,0.413942]
[1735314659301,0.07268908,94237.0,94226.0,0.05314]
[1735314659507,0.01955508,94237.0,94227.0,0.05314]
[1735314660308,0.01855508,94237.0,94223.0,0.3618]
[1735314660609,0.053138,94230.0,94223.0,0.3618]
[1735314660802,0.053138,94230.0,94223.0,0.001]
[1735314661007,0.3608,94231.0,94227.0,0.002]
[1735314661207,0.01855508,94237.0,94227.0,0.002]
[1735314661417,0.01855508,94237.0,94227.0,0.05314]
[1735314661614,0.01855508,94237.0,94227.0,0.05614]
[1735314662116,0.01855508,94237.0,94228.0,0.053139]
[1735314662311,0.01855508,94237.0,94227.0,0.003]
[1735314662312,0.00159244,94237.0,94236.0,0.053135]
[1735314662508,0.00159244,94237.0,94224.0,0.3608]
[1735314662707,0.00159244,94237.0,94223.0,0.003]
[1735314662708,0.3608,94231.0,94223.0,0.003]
[1735314662903,0.3608,94254.0,94239.0,0.053133]
[1735314663110,0.28550549,94257.0,94239.0,0.053133]
[1735314663111,0.28550549,94257.0,94253.0,0.3608]
[1735314663421,0.28550549,94257.0,94256.0,0.053123]
[1735314664009,0.1154641,94269.0,94256.0,0.353123]
[1735314664305,0.1622314,94310.0,94256.0,0.353123]
[1735314664306,0.3608,94331.0,94268.0,0.3608]
[1735314664510,0.3608,94331.0,94309.0,0.053094]
[1735314664814,0.01627959,94317.0,94313.0,0.3608]
[1735314665016,0.1622314,94330.0,94313.0,0.3608]
[1735314665205,0.1622314,94330.0,94294.0,0.3608]
[1735314665404,0.3608,94308.0,94294.0,0.3608]
[1735314665608,0.3608,94308.0,94292.0,0.35708]
[1735314665609,0.3608,94297.0,94292.0,0.35708]
[1735314665807,0.3608,94297.0,94269.0,0.2547]
[1735314665808,0.3608,94293.0,94269.0,0.2547]
[1735314666006,0.3608,94271.0,94269.0,0.2547]
[1735314666214,0.3608,94271.0,94264.0,0.01664472]
[1735314666617,0.37718581,94271.0,94260.0,0.3608]
[1735314667217,0.37718581,94271.0,94260.0,0.5230314]
[1735314667416,0.37818581,94271.0,94260.0,0.5230314]
[1735314667613,0.3618,94271.0,94267.0,0.053117]
[1735314667819,0.053104,94291.0,94270.0,0.3608]
[1735314668012,0.06936699,94291.0,94270.0,0.3608]
[1735314668213,0.06936699,94291.0,94272.0,0.053114]
[1735314668420,0.01626299,94291.0,94270.0,0.3608]
[1735314668718,0.3608,94304.0,94284.0,0.3608]
[1735314668907,0.01800616,94302.0,94285.0,0.4955]
[1735314669113,0.00159143,94302.0,94294.0,0.053102]
[1735314669718,0.00060001,94315.0,94314.0,0.053091]
[1735314670012,0.3608,94334.0,94314.0,0.3608]
[1735314670215,0.3623909,94336.0,94326.0,0.25032625]
[1735314670404,0.0015909,94336.0,94323.0,0.3608]
[1735314670605,0.0015909,94336.0,94326.0,0.053084]
[1735314671411,0.0065909,94336.0,94326.0,0.053084]
[1735314671612,0.3608,94334.0,94317.0,0.053089]
[1735314671813,0.3608,94318.0,94308.0,0.053094]
[1735314672015,0.3608,94326.0,94308.0,0.053094]
[1735314672720,0.3608,94326.0,94306.0,0.35696]
[1735314672721,0.3608,94326.0,94313.0,0.053091]
[1735314672915,0.0015909,94336.0,94326.0,0.001]
[1735314673511,0.0015909,94336.0,94330.0,0.053081]
[1735314674807,0.0045909,94336.0,94328.0,0.3608]
[1735314675008,0.003,94336.0,94335.0,0.053079]
[1735314675515,0.3608,94365.0,94338.0,0.053077]
[1735314675720,0.3608,94365.0,94346.0,0.3608]
[1735314676020,0.3608,94365.0,94350.0,0.05307]
[1735314676210,0.3608,94365.0,94351.0,0.05307]
[1735314676518,0.3608,94364.0,94353.0,0.053069]
[1735314676721,0.0015903,94368.0,94360.0,0.3608]
[1735314677015,0.0015903,94368.0,94367.0,0.053061]
[1735314677221,0.0015903,94368.0,94367.0,0.413861]
[1735314677821,0.053056,94375.0,94354.0,0.35684]
[1735314678036,0.3608,94379.0,94359.0,0.053065]
[1735314678324,0.3608,94379.0,94369.0,0.25032625]
[1735314678507,0.3608,94379.0,94368.0,0.05306]
[1735314678914,0.3608,94389.0,94373.0,0.053057]
[1735314679315,0.3776507,94389.0,94373.0,0.053057]
[1735314679723,0.003,94379.0,94373.0,0.053057]
[1735314680217,0.3776507,94389.0,94373.0,0.058057]
[1735314680717,0.3776507,94389.0,94373.0,0.053057]
[1735314680916,0.001,94379.0,94373.0,0.009]
[1735314681106,0.001,94379.0,94373.0,0.01]
[1735314681920,0.3608,94377.0,94373.0,0.01]
[1735314682123,0.3608,94377.0,94373.0,0.012]
[1735314682309,0.001,94379.0,94373.0,0.012]
[1735314682615,0.05305,94387.0,94373.0,0.007]
[1735314683223,0.01677575,94387.0,94373.0,0.005]
[1735314683412,0.3608,94390.0,94373.0,0.005]
[1735314683815,0.001,94387.0,94373.0,0.003]
[1735314684025,0.001,94387.0,94372.0,0.053058]
[1735314685418,0.3608,94390.0,94372.0,0.053058]
[1735314685825,0.053048,94391.0,94372.0,0.053058]
[1735314686219,0.3608,94383.0,94372.0,0.053058]
[1735314687019,0.01817346,94392.0,94381.0,0.3608]
[1735314687223,0.01817346,94392.0,94391.0,0.053047]
[1735314687224,0.0015899,94392.0,94391.0,0.053047]
[1735314687422,0.3608,94427.0,94411.0,0.053036]
[1735314687627,0.3608,94427.0,94417.0,0.25032625]
[1735314688427,0.37583753,94427.0,94417.0,0.25032625]
[1735314688611,0.37583753,94427.0,94417.0,0.30335925]
[1735314688812,0.37583753,94427.0,94417.0,0.25032625]
[1735314689318,0.3608,94419.0,94417.0,0.25032625]
[1735314689723,0.20156233,94419.0,94417.0,0.25132625]
[1735314690118,0.20156233,94419.0,94417.0,0.001]
[1735314690427,0.20156233,94419.0,94417.0,0.003]
[1735314691213,0.01503753,94427.0,94421.0,0.05303]
[1735314691417,0.053022,94437.0,94426.0,0.3608]
[1735314691927,0.053022,94437.0,94427.0,0.3608]
[1735314692229,0.37757427,94446.0,94432.0,0.00171384]
[1735314692418,0.37757427,94446.0,94436.0,0.16188972]
[1735314692621,0.01677427,94446.0,94445.0,0.3608]
[1735314692816,0.01677427,94446.0,94436.0,0.16188972]
[1735314693127,0.01677427,94446.0,94441.0,0.00171384]
[1735314693724,0.01677427,94446.0,94445.0,0.3608]
[1735314694235,0.053007,94463.0,94445.0,0.3608]
[1735314694236,0.053011,94457.0,94445.0,0.00171384]
[1735314694423,0.3608,94453.0,94445.0,0.00171384]
[1735314694820,0.37605128,94463.0,94445.0,0.00571384]
[1735314695025,0.01525128,94463.0,94445.0,0.00571384]
[1735314695225,0.05459466,94465.0,94454.0,0.00171384]
[1735314695433,0.053009,94459.0,94454.0,0.00171384]
[1735314695725,0.053025,94431.0,94424.0,0.3608]
[1735314695932,0.16188972,94431.0,94424.0,0.3608]
[1735314696232,0.053026,94429.0,94424.0,0.3608]
[1735314696435,0.37580793,94437.0,94424.0,0.3608]
[1735314696731,0.37580793,94437.0,94418.0,0.053032]
[1735314696920,0.01500793,94437.0,94432.0,0.3608]
[1735314697121,0.3608,94447.0,94432.0,0.3608]
[1735314697319,0.37628591,94447.0,94432.0,0.3608]
[1735314697634,0.001,94437.0,94432.0,0.3608]
[1735314697930,0.001,94437.0,94433.0,0.053024]
[1735314698322,0.37628591,94447.0,94434.0,0.413823]
[1735314698521,0.37628591,94447.0,94434.0,0.053023]
[1735314698831,0.2444,94454.0,94434.0,0.053023]
[1735314698832,0.3608,94466.0,94440.0,0.3608]
[1735314699034,0.3608,94466.0,94456.0,0.053011]
[1735314699426,0.01710223,94465.0,94450.0,0.3608]
[1735314699634,0.00158866,94465.0,94458.0,0.41381]
[1735314699822,0.00158866,94465.0,94464.0,0.053007]
[1735314700023,0.2444,94488.0,94468.0,0.053004]
[1735314700328,0.3608,94496.0,94470.0,0.16188972]
[1735314700538,0.3608,94496.0,94480.0,0.3608]
[1735314700929,0.10583914,94495.0,94480.0,0.3608]
[1735314701335,0.37637716,94496.0,94480.0,0.3608]
[1735314701524,0.38181715,94496.0,94480.0,0.3608]
[1735314701723,0.38181715,94496.0,94480.0,0.57568672]
[1735314702030,0.02101715,94496.0,94484.0,0.052995]
[1735314702228,0.00158814,94507.0,94497.0,0.052988]
[1735314702627,0.07008985,94507.0,94492.0,0.3608]
[1735314702827,0.05457114,94507.0,94481.0,0.2547]
[1735314703230,0.00158814,94507.0,94488.0,0.3608]
[1735314703532,0.00158814,94507.0,94498.0,0.3608]
[1735314704036,0.05299,94495.0,94488.0,0.3608]
[1735314704236,0.052986,94502.0,94488.0,0.3608]
[1735314704728,0.3608,94506.0,94488.0,0.3608]
[1735314704927,0.00258814,94507.0,94496.0,0.3608]
[1735314705637,0.001,94507.0,94496.0,0.3608]
[1735314705931,0.001,94507.0,94497.0,0.05299]
[1735314706431,0.001,94507.0,94496.0,0.3608]
[1735314706939,0.052986,94504.0,94488.0,0.3608]
[1735314707128,0.3608,94502.0,94488.0,0.3618]
[1735314707330,0.052992,94494.0,94488.0,0.3618]
[1735314707628,0.10581786,94501.0,94488.0,0.3618]
[1735314707828,0.052988,94501.0,94488.0,0.3608]
[1735314708228,0.3608,94502.0,94488.0,0.3608]
[1735314708630,0.3608,94502.0,94488.0,0.3628]
[1735314709034,0.052992,94497.0,94488.0,0.3638]
[1735314709627,0.37637485,94502.0,94488.0,0.3638]
[1735314710735,0.01557485,94502.0,94500.0,0.3608]
[1735314710938,0.3608,94520.0,94500.0,0.3608]
[1735314711127,0.3608,94520.0,94510.0,0.3608]
[1735314711332,0.01524612,94520.0,94510.0,0.3608]
[1735314711639,0.00158789,94521.0,94510.0,0.3608]
[1735314712040,0.10580331,94519.0,94500.0,0.3608]
[1735314712236,0.6098844,94520.0,94500.0,0.3638]
[1735314712237,0.052981,94516.0,94500.0,0.3638]
[1735314712542,0.3608,94520.0,94500.0,0.3638]
[1735314712741,0.3608,94520.0,94510.0,0.003]
[1735314712933,0.413779,94520.0,94510.0,0.003]
[1735314713136,0.10581114,94519.0,94510.0,0.003]
[1735314714137,0.10581114,94519.0,94510.0,0.001]
[1735314714533,0.36136001,94520.0,94510.0,0.001]
[1735314714835,0.3608,94520.0,94510.0,0.004]
[1735314715345,0.00158789,94521.0,94510.0,0.001]
[1735314715529,0.00158789,94521.0,94510.0,0.005]
[1735314716045,0.35488715,94520.0,94510.0,0.005]
[1735314716235,0.3608,94511.0,94510.0,0.005]
[1735314716433,0.3608,94511.0,94510.0,0.006]
[1735314716635,0.413784,94511.0,94510.0,0.006]
[1735314716836,0.51959234,94511.0,94510.0,0.006]
[1735314717032,0.51959234,94511.0,94510.0,0.002]
[1735314717235,0.51959234,94511.0,94510.0,0.005]
[1735314717539,0.51959234,94511.0,94510.0,0.009]
[1735314717849,0.51959234,94511.0,94510.0,0.004]
[1735314718034,0.46660834,94511.0,94495.0,0.3562]
[1735314718347,0.3608,94502.0,94495.0,0.3562]
[1735314718639,0.3608,94502.0,94484.0,0.3608]
[1735314718640,0.052996,94491.0,94484.0,0.3608]
[1735314718837,0.3608,94502.0,94465.0,0.287009]
[1735314718838,0.413793,94494.0,94467.0,0.305408]
[1735314719344,0.3608,94502.0,94486.0,0.3608]
[1735314719547,0.3608,94492.0,94477.0,0.3608]
[1735314719937,0.052997,94489.0,94477.0,0.3608]
[1735314720443,0.00056001,94491.0,94477.0,0.3608]
[1735314720634,0.3618,94502.0,94485.0,0.3608]
[1735314721235,0.3608,94502.0,94485.0,0.3608]
[1735314722046,0.37579505,94502.0,94485.0,0.3608]
[1735314722941,0.10582738,94501.0,94477.0,0.3658]
[1735314723145,0.37579505,94502.0,94487.0,0.3608]
[1735314723330,0.24356001,94520.0,94499.0,0.05299]
[1735314723534,0.3761899,94513.0,94498.0,0.3608]
[1735314723852,0.001,94502.0,94498.0,0.3608]
[1735314724150,0.413772,94533.0,94509.0,0.052985]
[1735314724449,0.413772,94533.0,94514.0,0.052982]
[1735314724450,0.01710839,94521.0,94514.0,0.052982]
[1735314724642,0.00158789,94521.0,94514.0,0.052982]
[1735314725549,0.00158789,94521.0,94516.0,0.052981]
[1735314725849,0.00158789,94521.0,94520.0,0.3608]
[1735314726744,0.052967,94542.0,94520.0,0.6133]
[1735314726943,0.052967,94541.0,94520.0,0.666278]
[1735314727253,0.37664024,94549.0,94525.0,0.052976]
[1735314727448,0.052965,94546.0,94525.0,0.052976]
[1735314727753,0.21452531,94540.0,94520.0,0.6133]
[1735314727939,0.052968,94539.0,94520.0,0.6133]
[1735314728145,0.052968,94539.0,94520.0,0.6143]
[1735314728449,0.3608,94524.0,94520.0,0.001]
[1735314728751,0.052981,94516.0,94515.0,0.10678348]
[1735314728955,0.413781,94516.0,94515.0,0.10678348]
[1735314729549,0.46659547,94516.0,94502.0,0.3608]
[1735314729748,0.01556899,94524.0,94502.0,0.3608]
[1735314729946,0.052973,94532.0,94513.0,0.3608]
[1735314730139,0.3608,94534.0,94513.0,0.3608]
[1735314730347,0.3608,94534.0,94513.0,0.413782]
[1735314730556,0.413771,94534.0,94514.0,0.242]
[1735314730764,0.052978,94522.0,94502.0,0.3608]
[1735314731061,0.37642721,94534.0,94504.0,0.410108]
[1735314731062,0.3608,94525.0,94504.0,0.410108]
[1735314731452,0.413776,94525.0,94504.0,0.410108]
[1735314731965,0.052978,94522.0,94504.0,0.410108]
[1735314732156,0.053978,94522.0,94504.0,0.410108]
[1735314732460,0.052981,94516.0,94504.0,0.35712]
[1735314732667,0.052981,94516.0,94504.0,0.35612]
[1735314733662,0.3618,94525.0,94504.0,0.35812]
[1735314734055,0.052978,94522.0,94504.0,0.35812]
[1735314734251,0.3608,94525.0,94513.0,0.3608]
[1735314734451,0.052975,94527.0,94513.0,0.3608]
[1735314734651,0.01562721,94534.0,94513.0,0.3608]
[1735314734856,0.41433101,94535.0,94514.0,0.052982]
[1735314735056,0.413771,94535.0,94514.0,0.052982]
[1735314735656,0.052976,94525.0,94513.0,0.3608]
[1735314735867,0.052973,94531.0,94513.0,0.3608]
[1735314736756,0.002,94527.0,94513.0,0.3608]
[1735314737565,0.002,94527.0,94489.0,0.052996]
[1735314737566,0.052987,94506.0,94489.0,0.052996]
[1735314737757,0.052987,94506.0,94484.0,1.03514832]
[1735314737959,0.3608,94514.0,94484.0,1.03514832]
[1735314738166,0.052989,94503.0,94484.0,1.03514832]
[1735314738365,0.052988,94504.0,94484.0,1.03514832]
[1735314738570,0.3608,94514.0,94492.0,0.61458266]
[1735314738873,0.3608,94505.0,94492.0,0.3618]
[1735314739177,0.3608,94505.0,94492.0,0.413795]
[1735314739365,0.3608,94505.0,94492.0,0.414795]
[1735314739876,0.3608,94505.0,94492.0,0.3618]
[1735314740060,0.05299,94500.0,94492.0,0.3608]
[1735314740567,0.3608,94505.0,94495.0,0.01158729]
[1735314740568,0.052991,94499.0,94495.0,0.01158729]
[1735314740774,0.052992,94497.0,94495.0,0.01158729]
[1735314740981,0.413792,94497.0,94495.0,0.00758729]
[1735314741368,0.413792,94497.0,94495.0,0.00558729]
[1735314741670,0.413792,94497.0,94495.0,0.00158729]
[1735314742972,0.04464258,94531.0,94495.0,0.00158729]
[1735314743278,0.00158731,94560.0,94530.0,0.7216]
[1735314743475,0.052958,94558.0,94544.0,0.3608]
[1735314743777,0.10582458,94544.0,94530.0,0.3608]
[1735314744079,0.33003732,94545.0,94538.0,0.3608]
[1735314744269,0.32939732,94545.0,94538.0,0.3608]
[1735314744468,0.10577029,94543.0,94538.0,0.3608]
[1735314744672,0.052965,94544.0,94538.0,0.3608]
[1735314744969,0.10577477,94542.0,94538.0,0.3608]
[1735314745167,0.052965,94544.0,94538.0,0.3608]
[1735314745571,0.10577477,94543.0,94538.0,0.3608]
[1735314745771,0.052965,94544.0,94538.0,0.3608]
[1735314745967,0.10577421,94543.0,94538.0,0.3608]
[1735314747171,0.10577421,94543.0,94528.0,0.3608]
[1735314747172,0.40577421,94543.0,94528.0,0.3608]
[1735314747377,0.24901678,94540.0,94538.0,0.003]
[1735314747877,0.052968,94539.0,94538.0,0.003]
[1735314748078,0.15874445,94539.0,94538.0,0.003]
[1735314748276,0.052968,94539.0,94538.0,0.003]
[1735314748476,1.5,94539.0,94538.0,0.004]
[1735314748676,1.60577645,94539.0,94538.0,0.004]
[1735314749077,1.60577645,94539.0,94538.0,0.3678]
[1735314749267,0.10577645,94539.0,94538.0,0.3678]
[1735314749868,0.12158024,94539.0,94538.0,0.3678]
[1735314750272,0.01580379,94539.0,94538.0,0.3678]
[1735314750480,0.052964,94547.0,94538.0,0.3678]
[1735314750773,0.052964,94547.0,94546.0,0.3608]
[1735314751072,0.01591396,94549.0,94546.0,0.04265232]
[1735314751280,0.2457,94556.0,94546.0,0.04265232]
[1735314751467,0.2328,94559.0,94546.0,0.04265232]
[1735314751873,0.052961,94552.0,94546.0,0.04265232]
[1735314753988,0.053961,94552.0,94546.0,0.04265232]
[1735314754369,0.052961,94552.0,94546.0,0.04265232]
[1735314754580,0.053961,94552.0,94546.0,0.04265232]
[1735314754784,0.052962,94551.0,94539.0,0.3608]
[1735314754979,0.052962,94551.0,94546.0,0.001]
[1735314755174,0.052962,94551.0,94546.0,0.002]
[1735314755576,0.052964,94547.0,94546.0,0.002]
[1735314755874,0.3608,94555.0,94521.0,0.3608]
[1735314756184,0.3608,94555.0,94513.0,0.052983]
[1735314756185,0.11149689,94547.0,94540.0,0.3608]
[1735314756570,0.11149689,94547.0,94546.0,0.002]
[1735314756571,0.052964,94547.0,94546.0,0.002]
[1735314756773,0.3608,94554.0,94546.0,0.002]
[1735314757187,0.10576806,94553.0,94548.0,0.3608]
[1735314757576,0.05296,94554.0,94548.0,0.3608]
[1735314757775,0.10576806,94553.0,94548.0,0.3608]
[1735314757978,0.052962,94550.0,94548.0,0.3608]
[1735314758276,0.052962,94550.0,94548.0,0.3618]
[1735314759378,0.052962,94550.0,94548.0,0.3628]
[1735314759981,0.052962,94550.0,94548.0,0.3638]
[1735314760973,0.0157872,94555.0,94548.0,0.3638]
[1735314761175,0.052958,94558.0,94548.0,0.3638]
[1735314761888,0.052958,94557.0,94548.0,0.3638]
[1735314762088,0.052959,94556.0,94548.0,0.3638]
[1735314762785,0.052959,94556.0,94548.0,0.3608]
[1735314763385,0.052962,94550.0,94548.0,0.3608]
[1735314763783,0.052967,94542.0,94529.0,0.3608]
[1735314763979,0.22601898,94549.0,94548.0,0.003]
[1735314764183,0.27898198,94549.0,94548.0,0.003]
[1735314764377,0.052963,94549.0,94548.0,0.005]
[1735314764581,0.27898198,94549.0,94548.0,0.005]
[1735314764782,0.9022081,94549.0,94519.0,0.3608]
[1735314764983,0.052979,94520.0,94519.0,0.33410148]
[1735314766281,0.052979,94520.0,94519.0,0.003]
[1735314766592,0.15877727,94520.0,94519.0,0.003]
[1735314766781,0.052984,94512.0,94508.0,0.3608]
[1735314766982,0.052985,94510.0,94508.0,0.3608]
[1735314767488,0.2172818,94509.0,94480.0,0.3608]
[1735314767787,0.052995,94492.0,94480.0,0.3608]
[1735314767992,0.053001,94482.0,94480.0,0.3608]
[1735314768190,0.053001,94482.0,94469.0,0.3608]
[1735314768191,0.053006,94473.0,94469.0,0.3608]
[1735314768588,0.053006,94471.0,94469.0,0.3608]
[1735314769889,0.10585371,94470.0,94469.0,0.3608]
[1735314770087,0.10585371,94470.0,94461.0,0.00112668]
[1735314770088,0.053011,94463.0,94461.0,0.00112668]
[1735314770684,0.10585371,94462.0,94461.0,0.00112668]
[1735314770884,0.053018,94450.0,94449.0,0.3608]
[1735314771088,0.16156512,94459.0,94449.0,0.3608]
[1735314772689,0.16756512,94459.0,94449.0,0.3608]
[1735314772895,0.053016,94453.0,94449.0,0.3608]
[1735314773288,0.16756512,94459.0,94449.0,0.3608]
[1735314773489,0.053018,94450.0,94449.0,0.3608]
[1735314775594,0.059018,94450.0,94449.0,0.3608]
[1735314775994,0.061018,94450.0,94449.0,0.3608]
[1735314779504,0.061018,94450.0,94438.0,0.3608]
[1735314779505,0.053024,94439.0,94438.0,0.3608]
[1735314780010,0.3608,94442.0,94421.0,0.36238853]
[1735314780188,0.16156512,94431.0,94421.0,0.3608]
[1735314780389,0.053034,94423.0,94421.0,0.3608]
[1735314780797,0.053034,94423.0,94421.0,0.3508]
[1735314781190,0.05304,94412.0,94410.0,0.3608]
[1735314781700,0.06864651,94412.0,94410.0,0.3608]
[1735314782003,0.10590752,94411.0,94410.0,0.3608]
[1735314782304,0.053045,94403.0,94402.0,0.34807]
[1735314782497,0.053046,94401.0,94394.0,0.3608]
[1735314782699,0.413846,94401.0,94389.0,0.00158907]
[1735314782902,0.16156512,94399.0,94382.0,0.3608]
[1735314783604,0.053056,94384.0,94382.0,0.3608]
[1735314784104,0.053057,94381.0,94373.0,0.3608]
[1735314785410,0.16156512,94383.0,94373.0,0.3608]
[1735314785702,0.05306,94376.0,94373.0,0.3608]
[1735314785905,0.053061,94374.0,94373.0,0.3608]
[1735314786090,0.053058,94380.0,94373.0,0.3608]
[1735314786291,0.053059,94378.0,94373.0,0.3648]
[1735314786490,0.053059,94378.0,94373.0,0.3668]
[1735314786701,0.17761582,94383.0,94373.0,0.3668]
[1735314786905,0.053061,94375.0,94373.0,0.3668]
[1735314787806,0.1059597,94374.0,94373.0,0.3668]
[1735314788495,0.1059597,94374.0,94373.0,0.002]
[1735314789003,0.1059597,94374.0,94351.0,0.3608]
[1735314789198,0.053069,94360.0,94351.0,0.3608]
[1735314789394,0.3608,94365.0,94351.0,0.3608]
[1735314789599,0.003,94374.0,94364.0,0.3608]
[1735314789804,0.004,94374.0,94373.0,0.3608]
[1735314790002,0.0161247,94390.0,94373.0,0.3608]
[1735314790204,0.21460612,94410.0,94389.0,0.7216]
[1735314790205,0.053041,94410.0,94389.0,0.7216]
[1735314790505,0.01755449,94406.0,94404.0,0.3608]
[1735314790699,0.00158974,94406.0,94404.0,0.3608]
[1735314791199,0.01624426,94425.0,94404.0,1.0216]
[1735314791394,0.053022,94444.0,94424.0,0.3608]
[1735314791602,0.10592659,94447.0,94432.0,0.3608]
[1735314791802,0.053017,94453.0,94440.0,0.3608]
[1735314792003,0.3608,94459.0,94440.0,0.3608]
[1735314792202,0.01596475,94460.0,94453.0,0.3608]
[1735314792401,0.00158885,94466.0,94453.0,0.3608]
[1735314792814,0.05301,94465.0,94463.0,0.3608]
[1735314793017,0.05301,94465.0,94437.0,0.35644]
[1735314793018,0.053012,94462.0,94444.0,0.3608]
[1735314793415,0.00158885,94466.0,94461.0,0.3608]
[1735314794099,0.052997,94488.0,94461.0,0.6608]
[1735314794326,0.052997,94488.0,94481.0,0.3608]
[1735314794917,0.053,94482.0,94470.0,0.3608]
[1735314796011,0.053,94482.0,94481.0,0.004]
[1735314796603,0.054,94482.0,94470.0,0.3608]
[1735314797300,0.001,94482.0,94481.0,0.3608]
[1735314797512,0.001,94482.0,94481.0,0.3638]
[1735314798211,0.052991,94499.0,94481.0,0.3678]
[1735314798413,0.1,94500.0,94494.0,0.3608]
[1735314799217,0.11634236,94500.0,94494.0,0.3608]
[1735314799410,0.1,94500.0,94494.0,0.3608]
[1735314800203,0.3608,94547.0,94494.0,0.6638]
[1735314800416,0.052969,94538.0,94528.0,0.3608]
[1735314801003,0.37685247,94547.0,94528.0,0.3608]
[1735314801217,0.052973,94532.0,94517.0,0.3608]
[1735314801617,0.052973,94532.0,94531.0,0.3608]
[1735314801811,0.004,94538.0,94531.0,0.3608]
[1735314802221,0.052967,94542.0,94531.0,0.3608]
[1735314803318,0.052967,94542.0,94531.0,0.3648]
[1735314803513,0.00158731,94557.0,94541.0,0.413767]
[1735314803717,0.01576369,94567.0,94556.0,0.3608]
[1735314803919,0.01576369,94567.0,94566.0,0.3608]
[1735314804110,0.10577924,94589.0,94566.0,0.3608]
[1735314804419,0.12179643,94595.0,94581.0,0.3608]
[1735314804713,0.37709931,94598.0,94566.0,0.3608]
[1735314804920,0.3608,94580.0,94566.0,0.3608]
[1735314805123,0.052951,94571.0,94566.0,0.3608]
[1735314805322,0.052953,94567.0,94545.0,0.3608]
[1735314805617,0.052953,94567.0,94566.0,0.001]
[1735314806018,1.5,94567.0,94545.0,0.3608]
[1735314806213,0.052957,94559.0,94545.0,0.3608]
[1735314806717,1.60574569,94567.0,94545.0,0.3608]
[1735314806718,0.3608,94563.0,94545.0,0.3608]
[1735314806918,0.052959,94556.0,94545.0,0.3608]
[1735314807216,0.052957,94559.0,94545.0,0.3608]
[1735314807417,1.51685057,94567.0,94554.0,0.3608]
[1735314807620,0.052954,94564.0,94562.0,0.3608]
[1735314808016,0.002,94563.0,94562.0,0.3608]
[1735314808722,0.052954,94564.0,94562.0,0.3608]
[1735314808923,0.052954,94564.0,94562.0,0.001]
[1735314809225,0.052954,94564.0,94562.0,0.006]
[1735314809424,0.01621057,94567.0,94562.0,0.006]
[1735314809734,0.1587026,94566.0,94562.0,0.006]
[1735314810017,0.052953,94566.0,94562.0,0.006]
[1735314810423,0.10574848,94565.0,94562.0,0.007]
[1735314810614,0.052954,94564.0,94562.0,0.007]
[1735314811016,0.10574848,94563.0,94562.0,0.007]
[1735314811210,0.10574848,94563.0,94562.0,0.006]
[1735314811410,0.052954,94564.0,94562.0,0.001]
[1735314811824,0.02115341,94566.0,94563.0,0.3608]
[1735314812127,0.003,94564.0,94563.0,0.3608]
[1735314812323,0.003,94564.0,94562.0,0.001]
[1735314812517,0.003,94564.0,94543.0,0.3608]
[1735314812518,0.1057496,94564.0,94543.0,0.3608]
[1735314812826,0.413755,94563.0,94562.0,0.005]
[1735314813129,0.51951523,94563.0,94562.0,0.005]
[1735314813826,0.15871523,94563.0,94562.0,0.005]
[1735314814217,0.052959,94556.0,94543.0,0.3608]
[1735314814417,0.46656023,94563.0,94543.0,0.3608]
[1735314814626,0.052956,94561.0,94543.0,0.3608]
[1735314814831,0.10575016,94562.0,94543.0,0.3608]
[1735314815019,0.052957,94560.0,94543.0,0.3608]
[1735314815514,0.003,94556.0,94543.0,0.3608]
[1735314815719,0.003,94556.0,94553.0,0.3608]
[1735314817016,0.003,94561.0,94553.0,0.3608]
[1735314817415,0.006,94562.0,94553.0,0.3608]
[1735314817623,0.002,94556.0,94553.0,0.3608]
[1735314818225,0.004,94556.0,94553.0,0.3608]